[Event "Romanian GP Final KO 2023"]
[Site "Alba Iulia"]
[Date "2023.12.05"]
[Round "3.3"]
[White "Lupulescu, Constantin"]
[Black "Serban, Cristian-Stefan"]
[Result "1-0"]
[ECO "E53"]
[WhiteElo "2581"]
[BlackElo "2332"]
[Annotator "TA"]
[PlyCount "101"]
[EventDate "2023.12.04"]
[EventType "k.o."]
[EventCountry "ROU"]
[SourceTitle "playchess.com"]
[Source "ChessBase"]
[SourceQuality "1"]
[TimeControl "900+5"]

{[%evp 23,101,-2,1,8,2,1,29,0,29,38,36,41,41,32,32,30,20,28,59,57,60,54,54,66,56,31,54,42,65,29,184,83,110,97,113,119,115,117,117,94,118,93,72,-8,45,29,43,25,25,21,14,13,18,15,29,28,35,32,30,27,50,50,52,45,80,45,48,45,45,38,34,33,63,1,348,354,339,321,2789,2077]} 1. d4 {[%emt 0:10:12]} Nf6 {[%emt 0:11:10]} 2. c4 {[%emt 0:00:05]} e6 {[%emt 0:00:06]} 3. Nc3 {[%emt 0:00:06]} Bb4 {[%emt 0:00:06]} 4. e3 {[%emt 0:00:06]} O-O {[%emt 0:00:07]} 5. Bd3 {[%emt 0:00:06]} d5 {[%emt 0:00:05]} 6. a3 {[%emt 0:00:06]} Bxc3+ {[%emt 0:00:09]} 7. bxc3 {[%emt 0:00:06]} dxc4 {[%emt 0:00:06]} 8. Bxc4 c5 9. Nf3 {[%emt 0:00:13]} Qc7 {[%emt 0:00:11]} 10. Be2 {[%emt 0:00:07]} b6 {[%emt 0:00:06]} 11. O-O {[%emt 0:00:09] 11.Bb2 is the fancy move.} Bb7 {[%emt 0:00:07]} 12. Bb2 {[%emt 0:00:10]} Nbd7 {[%emt 0:00:06]} 13. Nd2 {[%emt 0:00:36] E53: Nimzo-Indian: Rubinstein: Main Line (4...0-0 5 Nf3 d5 6 Bd3 c5 7 0-0).} Rfd8 {[%emt 0:00:07]} 14. Qb3 {[%emt 0:00:17] [#]} e5 $146 {[%emt 0:00:11]} ({Predecessor:} 14... Rac8 15. Rfd1 Bd5 16. c4 Bb7 17. a4 cxd4 18. exd4 e5 19. d5 Nc5 20. Qe3 Re8 {½-½ Lupulescu,C (2584)-Martinez Alcantara,J (2619) Julius Baer Play In rapid 2023 (1.18)}) 15. Rac1 {[%emt 0:00:11] White has an edge.} exd4 {[%emt 0:00:09]} ({Don't do} 15... Qc6 16. e4 $14) 16. cxd4 {[%emt 0:00:07]} Bd5 {[%emt 0:00:08]} ({Don't play} 16... Qc6 17. e4 $16) 17. Qc2 {[%emt 0:00:13]} Qb7 {[%emt 0:00:08]} 18. f3 {[%emt 0:00:10] Threatens to win with e4.} Rac8 {[%emt 0:00:10]} 19. Qb1 {[%emt 0:00:19]} cxd4 {[%emt 0:00:07]} 20. Bxd4 {[%emt 0:00:06]} Be6 {[%emt 0:00:11]} 21. Qb2 {[%emt 0:00:06]} Ne8 {[%emt 0:00:09]} 22. Ne4 {[%emt 0:00:20]} Rxc1 {[%emt 0:00:07]} 23. Rxc1 {[%emt 0:00:06]} Rc8 {[%emt 0:00:21]} 24. Bb5 {[%emt 0:00:11] A strong pair of Bishops.} Bd5 {[%emt 0:00:23]} 25. Nc3 {[%emt 0:00:08] Hoping for Nxd5.} Bc6 {[%emt 0:00:07]} 26. Bd3 {[%emt 0:00:08]} Nd6 $2 {[%emt 0:00:26] [#]} (26... Nf8 $11) 27. Ne2 {[%emt 0:00:07]} (27. Bxg7 $1 $18 {is more deadly. Black must now prevent Bh6.} f6 28. Bh6) 27... f6 {[%emt 0:00:09]} 28. Nf4 {[%emt 0:00:09]} Ba4 {[%emt 0:00:14] Prevents Qb3+.} 29. Qa2+ {[%emt 0:00:12]} Kh8 {[%emt 0:00:06]} 30. Rxc8+ {[%emt 0:00:12]} Qxc8 {[%emt 0:00:06]} 31. Qd5 {[%emt 0:00:16] Wards off Nc5} (31. Qe6 {looks sharper.} Qc1+ 32. Kf2 Qxa3 33. Qe7) 31... Qc6 {[%emt 0:00:15]} 32. Qh5 {[%emt 0:00:08][%csl Gd3][%cal Rh5h7] Wards off Ne5. White is much more active.} (32. Qe6 {is more complex.} Qc1+ 33. Kf2 Qxa3 34. Qe7) 32... Nf8 {[%emt 0:00:11] [#]} 33. Kf2 {[%emt 0:00:31]} (33. Bxh7 $1 $16 Qb5 34. Bf5+ Kg8 35. Nd5 Nxf5 36. Qxf5) 33... Qe8 {[%emt 0:00:07]} (33... Bc2 $1 $11 34. Bxc2 Qxc2+ 35. Kg3 Nf5+ 36. Kg4 (36. Kh3 Kg8 $15) 36... Nxd4 37. exd4 g6) 34. Qd5 {[%emt 0:00:06]} (34. Qxe8 {simplifies} Bxe8 35. e4 Nd7 36. Ne6) 34... Qc6 {[%emt 0:00:08]} 35. Qa2 {[%emt 0:00:11] Threatening Nd5.} Bb5 {[%emt 0:00:06]} 36. Bc2 {[%emt 0:00:09]} Bc4 {[%emt 0:00:07]} 37. Qb1 {[%emt 0:00:06][%cal Oc2h7]} Bg8 {[%emt 0:00:06]} 38. Bd3 {[%emt 0:00:07]} Nc4 {[%emt 0:00:14]} 39. Qb4 {[%emt 0:00:10]} Qd6 {[%emt 0:00:11]} 40. Qxd6 {[%emt 0:00:09]} (40. h4 {with more complications.} Bf7 41. g4 h6 42. Bc3) 40... Nxd6 {[%emt 0:00:06]} 41. e4 {[%emt 0:00:14]} Ne6 {[%emt 0:00:06]} 42. Nxe6 {[%emt 0:00:10]} Bxe6 $14 {[%emt 0:00:06][%mdl 4096] Endgame KBB-KBN} 43. Bc3 {[%emt 0:00:15]} Bc4 {[%emt 0:00:07]} 44. Bc2 {[%emt 0:00:06]} Nb5 {[%emt 0:00:06][%csl LRa3,LRc3]} 45. Bb4 {[%emt 0:00:06]} Kg8 {[%emt 0:00:07]} 46. a4 {[%emt 0:00:12]} Nd4 {[%emt 0:00:07]} 47. Bd1 {[%emt 0:00:07]} a5 {[%emt 0:00:09]} 48. Bd2 {[%emt 0:00:08]} (48. Ba3 $14) 48... Bb3 $2 {[%emt 0:00:06][%mdl 8192]} (48... Ne6 $1 $11 {and Black stays safe.}) 49. Bxb3+ $18 {[%emt 0:00:06]} Nxb3 {[%emt 0:00:06]} 50. Be3 {[%emt 0:00:06]} Nd2 $2 {[%emt 0:00:19]} (50... Nc5 $2 51. Bxc5 bxc5 52. Ke2) (50... b5 51. axb5 a4) 51. Bxd2 {[%emt 0:00:07] Weighted Error Value: White=0.14 (very precise) /Black=0.31} 1-0

[Event "Romanian GP Final KO 2023"]
[Site "Alba Iulia"]
[Date "2023.12.05"]
[Round "3.3"]
[White "Gavrilescu, David"]
[Black "Petkov, Momchil"]
[Result "1-0"]
[ECO "B20"]
[WhiteElo "2534"]
[BlackElo "2499"]
[Annotator "TA"]
[PlyCount "63"]
[EventDate "2023.12.04"]
[EventType "k.o."]
[EventCountry "ROU"]
[SourceTitle "playchess.com"]
[Source "ChessBase"]
[SourceQuality "1"]
[TimeControl "900+5"]

{[%evp 9,63,-20,-20,-38,29,16,71,0,-1,-49,-27,-58,-22,-80,-76,-80,-76,-71,-36,-37,-35,-41,-43,-37,-35,-78,-33,-31,8,4,55,25,31,28,22,0,68,-7,288,291,367,360,585,568,713,713,706,706,706,706,706,706,714,675,578,568]} 1. e4 {[%emt 0:10:11]} c5 {[%emt 0:11:10]} 2. b3 {[%emt 0:00:06]} Nf6 {[%emt 0:00:07]} 3. e5 {[%emt 0:00:05]} Nd5 {[%emt 0:00:06]} 4. Nf3 {[%emt 0:00:06]} g6 {[%emt 0:00:09]} 5. Bb2 {[%emt 0:00:07]} Bg7 {[%emt 0:00:07]} 6. d4 {[%emt 0:00:20] B20: Sicilian: Unusual White 2nd moves.} cxd4 {[%emt 0:00:07]} (6... Qa5+ $1 $15 7. Qd2 Qxd2+ 8. Nbxd2 cxd4) 7. Qxd4 $11 {[%emt 0:00:07]} Nc7 {[%emt 0:00:08]} (7... Nb6 $11 {remains equal.}) 8. Nbd2 {[%emt 0:00:11] White has more active pieces.} (8. Nc3 $16) 8... Nc6 {[%emt 0:00:07] [#]} 9. Qf4 $146 {[%emt 0:00:08]} (9. Qh4 $11) ({Predecessor:} 9. Qh4 a5 10. a4 d5 11. O-O-O Bf5 12. g4 Bd7 13. Kb1 Rc8 14. Bb5 Nxb5 15. axb5 {0-1 Muromtsev,A (2161)-Pavlidis,A (2536) Titled Tuesday intern op 17th Nov blitz 2020 (1)}) 9... Ne6 {[%emt 0:00:08]} 10. Qg3 {[%emt 0:00:07]} Qa5 {[%emt 0:00:28]} 11. Be2 {[%emt 0:00:30]} (11. a3 $11) 11... d6 $17 {[%emt 0:00:06][%cal Rd6e5]} 12. O-O {[%emt 0:00:07]} Nxe5 {[%emt 0:00:13]} 13. Nc4 {[%emt 0:00:06]} Nxf3+ {[%emt 0:00:09]} 14. Bxf3 {[%emt 0:00:07]} Qc7 {[%emt 0:00:14]} 15. Bxg7 {[%emt 0:00:08]} Nxg7 {[%emt 0:00:06]} 16. Rfe1 {[%emt 0:00:07]} O-O {[%emt 0:00:07]} 17. h4 {[%emt 0:00:12][%cal Bh2h4,Bh4h5,Bh5h6][%mdl 32]} Be6 {[%emt 0:00:07]} (17... Nf5 $5 {[%cal Rf5g3]} 18. Qg5 f6 $15) 18. Ne3 {[%emt 0:00:05]} Qb6 {[%emt 0:00:21]} 19. h5 {[%emt 0:00:09]} Rfe8 {[%emt 0:00:14]} (19... Qc7 $11) 20. h6 {[%emt 0:00:27]} Nf5 {[%emt 0:00:08]} 21. Nxf5 {[%emt 0:00:07]} Bxf5 {[%emt 0:00:06]} 22. c4 {[%emt 0:00:08]} Rad8 {[%emt 0:00:22]} (22... f6 $11) 23. Rad1 {[%emt 0:00:07]} (23. Qh4 $14 Kf8 24. Bd5) 23... e5 $2 {[%emt 0:00:18][%mdl 8192] A mistake that costs the game.} (23... f6 $1 $11 {and Black has nothing to worry.}) 24. Qg5 $18 {[%emt 0:00:09]} d5 {[%emt 0:00:14]} 25. Bxd5 {[%emt 0:00:07][%cal Oc4c5] c5! would be deadly.} ({Less strong is} 25. cxd5 Qd6 $14) 25... Kf8 $2 {[%emt 0:00:14] [#]} (25... Rd6 26. g4 Rxd5) 26. c5 $1 {[%emt 0:00:15][%mdl 576] Deflection. White is clearly winning.} Qxc5 {[%emt 0:00:17] [#]} (26... f6 27. Qxf5) 27. Qf6 $1 {[%emt 0:00:07][%csl Gd5][%cal Rf6f7][%mdl 64] Double Attack} Rxd5 {[%emt 0:00:07]} 28. Rxd5 {[%emt 0:00:06]} Qxd5 {[%emt 0:00:09]} 29. Qg7+ {[%emt 0:00:07]} Ke7 {[%emt 0:00:06]} 30. Rxe5+ {[%emt 0:00:06]} Qxe5 {[%emt 0:00:08]} 31. Qxe5+ {[%emt 0:00:07]} Be6 {[%emt 0:00:06]} 32. Qc5+ {[%emt 0:00:06] Weighted Error Value: White=0.24 (precise) /Black=0.64} 1-0

[Event "Romanian GP Final KO 2023"]
[Site "Alba Iulia"]
[Date "2023.12.05"]
[Round "3.3"]
[White "Ardelean, George-Catalin"]
[Black "Nanu, Costica-Ciprian"]
[Result "0-1"]
[ECO "B13"]
[WhiteElo "2433"]
[BlackElo "2524"]
[Annotator "RC"]
[PlyCount "98"]
[EventDate "2023.12.04"]
[EventType "k.o."]
[EventCountry "ROU"]
[SourceTitle "playchess.com"]
[Source "ChessBase"]
[SourceQuality "1"]
[TimeControl "900+5"]

1. e4 {[%emt 0:10:12]} c6 {[%emt 0:11:10]} 2. d4 {[%emt 0:00:08]} d5 {[%emt 0:00:06]} 3. exd5 {[%emt 0:00:05]} cxd5 {[%emt 0:00:05]} 4. Bf4 {[%emt 0:00:07]} Nc6 {[%emt 0:00:07]} 5. c3 {[%emt 0:00:06]} Bf5 {[%emt 0:00:05]} 6. Nf3 {[%emt 0:00:08]} e6 {[%emt 0:00:06]} 7. Nbd2 {[%emt 0:00:07]} Bd6 {[%emt 0:00:05]} 8. Bxd6 {[%emt 0:00:06]} Qxd6 {[%emt 0:00:06]} 9. Nh4 {[%emt 0:00:06]} Nf6 {[%emt 0:00:06]} 10. Nxf5 {[%emt 0:00:08]} exf5 {[%emt 0:00:05]} 11. Bd3 {[%emt 0:00:09]} g6 {[%emt 0:00:09]} 12. O-O {[%emt 0:00:14]} O-O {[%emt 0:00:09]} 13. Nb3 {[%emt 0:00:12]} Rfe8 {[%emt 0:00:14]} 14. Qd2 {[%emt 0:00:21]} Re7 {[%emt 0:00:13]} 15. Rfe1 {[%emt 0:00:13]} Ne4 {[%emt 0:00:06]} 16. Qc2 {[%emt 0:00:11]} Rc8 {[%emt 0:00:09]} 17. a3 {[%emt 0:00:21]} h5 {[%emt 0:00:08]} 18. f3 {[%emt 0:00:06]} Nf6 {[%emt 0:00:07]} 19. Qf2 {[%emt 0:00:10]} Rce8 {[%emt 0:00:13]} 20. Rxe7 {[%emt 0:00:12]} Rxe7 {[%emt 0:00:06]} 21. Re1 {[%emt 0:00:11]} Kg7 {[%emt 0:00:06]} 22. Rxe7 {[%emt 0:00:09]} Qxe7 {[%emt 0:00:09]} 23. Qd2 {[%emt 0:00:08]} h4 {[%emt 0:00:09]} 24. Nc1 {[%emt 0:00:11]} Nh5 {[%emt 0:00:18]} 25. Ne2 {[%emt 0:00:07]} Na5 {[%emt 0:00:10]} 26. Kf2 {[%emt 0:00:11]} a6 {[%emt 0:00:08]} 27. Nf4 {[%emt 0:00:16]} Nf6 {[%emt 0:00:19]} 28. Nh3 {[%emt 0:00:18]} Nc4 {[%emt 0:00:20]} 29. Qc1 {[%emt 0:00:28]} b5 {[%emt 0:00:09]} 30. Ng5 {[%emt 0:00:15]} Qd6 {[%emt 0:00:09]} 31. g3 {[%emt 0:00:10]} hxg3+ {[%emt 0:00:08]} 32. hxg3 {[%emt 0:00:05]} Nh5 {[%emt 0:00:06]} 33. f4 {[%emt 0:00:08]} Nf6 {[%emt 0:00:07]} 34. Kf3 {[%emt 0:00:16]} Ne4 {[%emt 0:00:09]} 35. Bxc4 {[%emt 0:00:19]} Nxg5+ {[%emt 0:00:09]} 36. fxg5 {[%emt 0:00:06]} bxc4 {[%emt 0:00:07]} 37. Qe3 {[%emt 0:00:14]} f6 {[%emt 0:00:23]} 38. gxf6+ {[%emt 0:00:11]} Kxf6 {[%emt 0:00:06]} 39. Qe8 {[%emt 0:00:06]} Qe7 {[%emt 0:00:27]} 40. Qh8+ {[%emt 0:00:09]} Kf7 {[%emt 0:00:10]} 41. Qh7+ {[%emt 0:00:11]} Kf6 {[%emt 0:00:06]} 42. Qh8+ {[%emt 0:00:08]} Kf7 {[%emt 0:00:06]} 43. Qb8 {[%emt 0:00:09]} Qe4+ {[%emt 0:00:08]} 44. Kf2 {[%emt 0:00:05]} Qc2+ {[%emt 0:00:14]} 45. Kg1 {[%emt 0:00:13]} Qd1+ {[%emt 0:00:07]} 46. Kf2 {[%emt 0:00:07]} Qc2+ {[%emt 0:00:13]} 47. Ke3 {[%emt 0:00:11]} Qd3+ {[%emt 0:00:08]} 48. Kf4 {[%emt 0:00:14]} Qe4+ {[%emt 0:00:09]} 49. Kg5 {[%emt 0:00:09]} Qg4+ {[%emt 0:00:07]} 0-1